[Event "Mitropa Cup Women 2019"]
[Site "Radenci"]
[Date "2019.06.01"]
[Round "6.5"]
[White "Havanecz, Bianka"]
[Black "Unuk, Laura"]
[Result "1/2-1/2"]
[ECO "E11"]
[WhiteElo "2279"]
[BlackElo "2265"]
[Annotator "ChessBase"]
[PlyCount "50"]
[EventDate "2019.05.27"]
[EventType "team-tourn"]
[EventCountry "SLO"]
[SourceTitle "playchess.com"]
[Source "ChessBase"]
[SourceQuality "1"]
[WhiteTeam "Hungary"]
[BlackTeam "Slovenia"]
[WhiteTeamCountry "HUN"]
[BlackTeamCountry "SLO"]
[TimeControl "40/5400+30:1800+30"]

1. d4 {[%emt 0:00:00]} Nf6 {[%emt 0:00:00]} 2. c4 {[%emt 0:00:00]} e6 {[%emt 0:00:00]} 3. g3 {[%emt 0:00:00]} d5 {[%emt 0:04:17]} 4. Nf3 {[%emt 0:00:07]} Bb4+ {[%emt 0:03:33]} 5. Bd2 {[%emt 0:00:20]} Be7 {[%emt 0:00:05]} 6. Bg2 {[%emt 0:00:20]} c6 {[%emt 0:00:04]} 7. Qc2 {[%emt 0:00:45]} Nbd7 {[%emt 0:03:07]} 8. O-O {[%emt 0:00:16]} b6 {[%emt 0:01:57]} 9. Bf4 {[%emt 0:00:06]} Ba6 {[%emt 0:01:07]} 10. Nbd2 {[%emt 0:00:59]} O-O {[%emt 0:02:48]} 11. Rfd1 {[%emt 0:02:09]} c5 {[%emt 0:05:41]} 12. dxc5 {[%emt 0:34:57]} bxc5 {[%emt 0:03:03]} 13. e4 {[%emt 0:10:08]} d4 {[%emt 0:08:29]} 14. e5 {[%emt 0:01:07]} Nh5 {[%emt 0:02:32]} 15. Ne4 {[%emt 0:02:00]} h6 {[%emt 0:04:43]} 16. Bc1 {[%emt 0:00:54]} f5 {[%emt 0:01:30]} 17. exf6 {[%emt 0:02:22]} Nhxf6 {[%emt 0:00:35]} 18. Nxf6+ {[%emt 0:03:40]} Bxf6 {[%emt 0:04:15]} 19. Bxh6 {[%emt 0:04:42]} gxh6 {[%emt 0:05:14]} 20. Qg6+ {[%emt 0:00:05]} Kh8 {[%emt 0:00:20]} 21. Qxh6+ {[%emt 0:00:09]} Kg8 {[%emt 0:00:04]} 22. Qg6+ {[%emt 0:24:00]} Kh8 {[%emt 0:01:06]} 23. Qh6+ {[%emt 0:00:05]} Kg8 {[%emt 0:00:04]} 24. Qg6+ {[%emt 0:03:32]} Kh8 {[%emt 0:00:15]} 25. Qh6+ {[%emt 0:00:05]} Kg8 {[%emt 0:00:28]} 1/2-1/2

[Event "Mitropa Cup Women 2019"]
[Site "Radenci"]
[Date "2019.06.01"]
[Round "6.6"]
[White "Janzelj, Lara"]
[Black "Juhasz, Barbara"]
[Result "1-0"]
[ECO "B38"]
[WhiteElo "2203"]
[BlackElo "2207"]
[Annotator "ChessBase"]
[PlyCount "109"]
[EventDate "2019.05.27"]
[EventType "team-tourn"]
[EventCountry "SLO"]
[SourceTitle "playchess.com"]
[Source "ChessBase"]
[SourceQuality "1"]
[WhiteTeam "Slovenia"]
[BlackTeam "Hungary"]
[WhiteTeamCountry "SLO"]
[BlackTeamCountry "HUN"]
[TimeControl "40/5400+30:1800+30"]

1. d4 {[%emt 0:00:00]} Nf6 {[%emt 0:00:00]} 2. c4 {[%emt 0:00:00]} g6 {[%emt 0:00:00]} 3. Nc3 {[%emt 0:00:00]} Bg7 {[%emt 0:00:00]} 4. e4 {[%emt 0:00:00]} d6 {[%emt 0:00:10]} 5. h3 {[%emt 0:00:00]} O-O {[%emt 0:00:15]} 6. Be3 {[%emt 0:00:06]} c5 {[%emt 0:01:00]} 7. Nf3 {[%emt 0:00:07]} cxd4 {[%emt 0:13:27]} 8. Nxd4 {[%emt 0:00:07]} Nc6 {[%emt 0:00:04]} 9. Be2 {[%emt 0:01:39]} Bd7 {[%emt 0:06:06]} 10. O-O {[%emt 0:05:21]} Nxd4 {[%emt 0:14:42]} 11. Bxd4 {[%emt 0:00:11]} Bc6 {[%emt 0:00:08]} 12. Qd3 {[%emt 0:02:58]} a5 {[%emt 0:14:58]} 13. Rfd1 {[%emt 0:14:13]} Nd7 {[%emt 0:01:14]} 14. Be3 {[%emt 0:00:39]} a4 {[%emt 0:02:53]} 15. b4 {[%emt 0:03:50]} axb3 {[%emt 0:00:30]} 16. axb3 {[%emt 0:00:04]} Rxa1 {[%emt 0:03:00]} 17. Rxa1 {[%emt 0:00:05]} Nc5 {[%emt 0:13:48]} 18. Bxc5 {[%emt 0:06:19]} dxc5 {[%emt 0:00:05]} 19. Rd1 {[%emt 0:00:09]} Qxd3 {[%emt 0:12:54]} 20. Rxd3 {[%emt 0:00:18]} Bd4 {[%emt 0:08:42]} 21. Nd5 {[%emt 0:05:52]} Kg7 {[%emt 0:02:43]} 22. Bf3 {[%emt 0:01:56]} e6 {[%emt 0:00:14]} 23. Nf4 {[%emt 0:01:15]} Ra8 {[%emt 0:01:17]} 24. b4 {[%emt 0:05:08]} Ra1+ {[%emt 0:00:10]} 25. Kh2 {[%emt 0:00:01]} Be5 {[%emt 0:00:16]} 26. b5 {[%emt 0:01:05]} Bxb5 {[%emt 0:02:17]} 27. cxb5 {[%emt 0:02:00]} Bxf4+ {[%emt 0:00:02]} 28. g3 {[%emt 0:00:05]} Be5 {[%emt 0:00:05]} 29. Rd7 {[%emt 0:01:36]} c4 {[%emt 0:01:54]} 30. Bd1 {[%emt 0:00:04]} g5 {[%emt 0:01:16]} 31. Kg2 {[%emt 0:09:06]} b6 {[%emt 0:00:15]} 32. Kf3 {[%emt 0:00:43]} Rb1 {[%emt 0:00:42]} 33. Ke3 {[%emt 0:00:18]} Rxb5 {[%emt 0:00:42]} 34. f4 {[%emt 0:00:07]} gxf4+ {[%emt 0:00:13]} 35. gxf4 {[%emt 0:00:01]} Bb2 {[%emt 0:00:08]} 36. Kd2 {[%emt 0:01:39]} Rc5 {[%emt 0:01:11]} 37. Kc2 {[%emt 0:00:20]} c3 {[%emt 0:00:23]} 38. Rb7 {[%emt 0:01:09]} b5 {[%emt 0:00:32]} 39. Be2 {[%emt 0:00:06]} Kg6 {[%emt 0:00:24]} 40. Bxb5 {[%emt 0:00:00]} Rh5 {[%emt 0:00:00]} 41. Be8 {[%emt 0:05:24]} Rxh3 {[%emt 0:04:14]} 42. Rxf7 {[%emt 0:00:49]} Rh2+ {[%emt 0:03:38]} 43. Kb3 {[%emt 0:00:33]} h5 {[%emt 0:06:32]} 44. e5 {[%emt 0:05:44]} h4 {[%emt 0:01:17]} 45. Rf6+ {[%emt 0:02:04]} Kg7 {[%emt 0:00:04]} 46. Bd7 {[%emt 0:02:23]} Rf2 {[%emt 0:12:07]} 47. Bxe6 {[%emt 0:00:50]} Ba1 {[%emt 0:03:04]} 48. Rf7+ {[%emt 0:03:34]} Kh6 {[%emt 0:00:22]} 49. Bf5 {[%emt 0:09:39]} Rxf4 {[%emt 0:00:22]} 50. e6 {[%emt 0:00:01]} c2 {[%emt 0:01:30]} 51. Kxc2 {[%emt 0:00:01]} Rc4+ {[%emt 0:02:48]} 52. Kb1 {[%emt 0:02:03]} Bd4 {[%emt 0:00:48]} 53. e7 {[%emt 0:00:20]} Rb4+ {[%emt 0:00:19]} 54. Kc2 {[%emt 0:00:10]} Rb8 {[%emt 0:00:32]} 55. Rf8 {[%emt 0:00:20]} 1-0

[Event "Mitropa Cup Women 2019"]
[Site "Radenci"]
[Date "2019.06.01"]
[Round "6.7"]
[White "Gaal, Zsoka"]
[Black "Urh, Zala"]
[Result "1/2-1/2"]
[ECO "A11"]
[WhiteElo "2044"]
[BlackElo "2099"]
[Annotator "NA"]
[PlyCount "253"]
[EventDate "2019.05.27"]
[EventType "team-tourn"]
[EventCountry "SLO"]
[SourceTitle "playchess.com"]
[Source "ChessBase"]
[SourceQuality "1"]
[WhiteTeam "Hungary"]
[BlackTeam "Slovenia"]
[WhiteTeamCountry "HUN"]
[BlackTeamCountry "SLO"]
[TimeControl "40/5400+30:1800+30"]

1. Nf3 {[%emt 0:00:00]} d5 {[%emt 0:00:00]} 2. g3 {[%emt 0:00:00]} c6 {[%emt 0:00:00]} 3. Bg2 {[%emt 0:00:00]} Bg4 {[%emt 0:00:00]} 4. c4 {[%emt 0:00:00]} e6 {[%emt 0:00:38]} 5. cxd5 {[%emt 0:00:50]} Bxf3 {[%emt 0:00:14]} 6. Bxf3 {[%emt 0:00:07]} cxd5 {[%emt 0:00:07]} 7. O-O {[%emt 0:00:12]} Nf6 {[%emt 0:00:26]} 8. d4 {[%emt 0:00:22]} Nc6 {[%emt 0:00:40]} 9. Nc3 {[%emt 0:00:17]} Be7 {[%emt 0:00:30] A11: English Opening: 1...c6} 10. e3 {[%emt 0:00:10]} O-O {[%emt 0:00:40]} 11. Bd2 {[%emt 0:00:13]} Rc8 {[%emt 0:01:06]} (11... Qd7 12. Qe2 Rfc8 13. Rfd1 Bf8 14. Rac1 a6 15. Qd3 Ne7 16. b3 Nc6 17. Na4 {½-½ (46) Artemiev,V (2754)-Motylev,A (2650) Sochi 2019}) 12. Rc1 {[%emt 0:00:27]} Nd7 {[%emt 0:00:36]} 13. Qe2 {[%emt 0:06:09]} Nb6 {[%emt 0:01:00]} 14. Rfd1 {[%emt 0:01:44]} a6 {[%emt 0:01:18]} 15. Be1 {[%emt 0:06:18]} Bf6 {[%emt 0:06:37] [#]} 16. Nb1 $146 {[%emt 0:06:51]} ({Predecessor:} 16. Bg2 Rc7 17. Qc2 {½-½ (48) Cordova,E (2651)-Sevian,S (2601) Medellin 2017}) 16... Qd7 {[%emt 0:05:40]} 17. Bc3 {[%emt 0:04:55]} Rc7 {[%emt 0:04:37]} 18. Nd2 {[%emt 0:03:43]} Na4 {[%emt 0:04:58]} 19. Nb3 {[%emt 0:02:20]} Rfc8 {[%emt 0:08:13]} 20. Qe1 {[%emt 0:14:11]} Na7 {[%emt 0:04:36]} 21. Be2 {[%emt 0:05:30]} Be7 {[%emt 0:02:51]} 22. Nc5 {[%emt 0:12:48]} Nxc5 {[%emt 0:05:41]} 23. dxc5 {[%emt 0:00:09]} Bxc5 {[%emt 0:00:28]} 24. Qd2 {[%emt 0:04:56]} Nb5 {[%emt 0:04:20]} 25. Be5 {[%emt 0:04:56]} Bd6 {[%emt 0:02:55]} 26. Bxb5 {[%emt 0:07:38]} axb5 {[%emt 0:00:15]} 27. Rxc7 {[%emt 0:01:07]} Bxc7 {[%emt 0:04:59]} 28. Bc3 {[%emt 0:00:53]} Qc6 {[%emt 0:05:28]} 29. Qe2 {[%emt 0:04:50]} Bd6 {[%emt 0:02:32]} 30. Qg4 {[%emt 0:00:49]} Bf8 {[%emt 0:00:12]} 31. a3 {[%emt 0:01:40]} Ra8 {[%emt 0:05:15]} 32. h4 {[%emt 0:02:55]} Ra4 {[%emt 0:03:37]} 33. Qf3 {[%emt 0:00:44]} h6 {[%emt 0:03:37]} 34. h5 {[%emt 0:01:01]} b4 {[%emt 0:03:28]} 35. axb4 {[%emt 0:00:47]} Bxb4 {[%emt 0:00:08]} 36. b3 {[%emt 0:02:10]} Bxc3 {[%emt 0:02:17]} 37. bxa4 {[%emt 0:00:07]} Qxa4 {[%emt 0:00:10]} 38. Rc1 {[%emt 0:01:49]} Qc4 {[%emt 0:12:47]} 39. Qf4 {[%emt 0:03:00]} Qxf4 {[%emt 0:00:06]} 40. gxf4 {[%emt 0:00:00]} d4 {[%emt 0:00:00]} 41. Rb1 {[%emt 0:02:57]} d3 {[%emt 0:09:15]} 42. Rxb7 {[%emt 0:02:15]} d2 {[%emt 0:01:13]} 43. Rd7 {[%emt 0:00:23]} Kf8 {[%emt 0:01:00]} 44. Kf1 {[%emt 0:00:42]} Ke8 {[%emt 0:00:25]} 45. Rd3 {[%emt 0:00:09]} Bb4 {[%emt 0:02:09]} 46. Ke2 {[%emt 0:00:39]} Ke7 {[%emt 0:00:26]} 47. Rb3 {[%emt 0:01:40]} Ba5 {[%emt 0:00:21]} 48. Rb7+ {[%emt 0:00:25]} Kf6 {[%emt 0:01:54]} 49. e4 {[%emt 0:07:49]} g6 {[%emt 0:00:36]} 50. hxg6 {[%emt 0:04:38]} Kxg6 {[%emt 0:00:35]} 51. Ra7 {[%emt 0:03:46]} Bb4 {[%emt 0:00:33]} 52. Ra8 {[%emt 0:00:44]} Kg7 {[%emt 0:01:36]} 53. Ra4 {[%emt 0:00:46]} Bc3 {[%emt 0:00:45]} 54. Ra3 {[%emt 0:00:39]} Bb4 {[%emt 0:01:08]} 55. Rg3+ {[%emt 0:01:30]} Kf6 {[%emt 0:01:52]} 56. Rb3 {[%emt 0:01:08]} Ba5 {[%emt 0:00:28]} 57. f3 {[%emt 0:02:37]} Kg6 {[%emt 0:01:34]} 58. f5+ {[%emt 0:03:09]} exf5 {[%emt 0:00:40]} 59. Rb5 {[%emt 0:01:24]} Bc3 {[%emt 0:00:51]} 60. Rxf5 {[%emt 0:00:22]} Bb4 {[%emt 0:02:08]} 61. Rb5 {[%emt 0:00:45]} Bc3 {[%emt 0:00:11]} 62. f4 {[%emt 0:01:13]} Kf6 {[%emt 0:02:33]} 63. Rc5 {[%emt 0:01:20]} Bb4 {[%emt 0:00:14]} 64. Rc4 {[%emt 0:00:09]} Ba5 {[%emt 0:00:15]} 65. Rc6+ {[%emt 0:00:28]} Kg7 {[%emt 0:00:07]} 66. e5 {[%emt 0:01:02]} Bb4 {[%emt 0:00:50]} 67. e6 {[%emt 0:00:30]} fxe6 {[%emt 0:00:13]} 68. Rxe6 {[%emt 0:00:08]} Ba5 {[%emt 0:00:58]} 69. f5 {[%emt 0:00:59]} h5 {[%emt 0:00:52]} 70. Rg6+ {[%emt 0:00:11]} Kf7 {[%emt 0:00:32]} 71. Rh6 {[%emt 0:00:34]} Bb4 {[%emt 0:00:30]} 72. Rxh5 {[%emt 0:00:39]} Kf6 {[%emt 0:00:22]} 73. Rh4 {[%emt 0:00:26]} Bc3 {[%emt 0:01:27]} 74. Rc4 {[%emt 0:00:12]} (74. Rh3 $16 Ba5 75. Rb3) 74... Be5 {[%emt 0:02:48]} 75. Kxd2 {[%emt 0:00:53]} Kxf5 {[%emt 0:00:05]} 76. Ke3 {[%emt 0:00:22]} Ke6 {[%emt 0:00:42]} 77. Ke4 {[%emt 0:00:09]} Kd6 {[%emt 0:00:23]} 78. Rc2 {[%emt 0:00:26]} Bg3 {[%emt 0:00:55]} 79. Rg2 {[%emt 0:00:27]} Be1 {[%emt 0:00:39]} 80. Rg6+ {[%emt 0:00:41]} Kc7 {[%emt 0:01:52]} 81. Kd5 {[%emt 0:00:24]} Bf2 {[%emt 0:00:07]} 82. Rg7+ {[%emt 0:00:32]} Kb6 {[%emt 0:01:09]} 83. Kd6 {[%emt 0:00:51]} Be3 {[%emt 0:01:15]} 84. Rg4 {[%emt 0:00:17]} Bc5+ {[%emt 0:00:36]} 85. Kd7 {[%emt 0:00:14]} Kb7 {[%emt 0:00:10]} 86. Rc4 {[%emt 0:00:16]} Be3 {[%emt 0:00:14]} 87. Rb4+ {[%emt 0:00:08]} Ka8 {[%emt 0:01:08]} 88. Kc7 {[%emt 0:01:46]} Ba7 {[%emt 0:00:42]} 89. Rb7 {[%emt 0:00:43]} Bf2 {[%emt 0:00:34]} 90. Rb8+ {[%emt 0:00:30]} Ka7 {[%emt 0:00:01] [#]} 91. Rg8 $1 {[%emt 0:00:26]} Bb6+ {[%emt 0:01:26]} 92. Kc6 {[%emt 0:00:10]} Be3 {[%emt 0:00:22]} 93. Rg7+ {[%emt 0:00:37]} Ka8 {[%emt 0:00:45]} 94. Rg4 {[%emt 0:00:34]} Bf2 {[%emt 0:01:09]} 95. Kc7 {[%emt 0:00:39]} Be3 {[%emt 0:00:26]} 96. Ra4+ {[%emt 0:01:52]} Ba7 {[%emt 0:00:07]} 97. Rg4 {[%emt 0:00:08]} Be3 {[%emt 0:00:47]} 98. Kc6 {[%emt 0:00:10]} Bf2 $1 {[%emt 0:00:51]} 99. Rg8+ {[%emt 0:00:20]} Ka7 {[%emt 0:00:10]} 100. Kd5 {[%emt 0:00:36]} Be3 {[%emt 0:00:25]} 101. Rg7+ {[%emt 0:00:26]} Ka8 {[%emt 0:00:14]} 102. Rg3 {[%emt 0:00:17]} Bf2 {[%emt 0:00:35]} 103. Ra3+ {[%emt 0:00:10]} Kb7 {[%emt 0:00:20]} 104. Kc4 {[%emt 0:00:18]} Bb6 {[%emt 0:00:27]} 105. Rb3 {[%emt 0:00:09]} Ka7 {[%emt 0:00:35]} 106. Rb1 {[%emt 0:00:35]} Be3 {[%emt 0:00:15]} 107. Rh1 {[%emt 0:00:29]} Bf2 {[%emt 0:00:17]} 108. Rh7+ {[%emt 0:00:25]} Ka8 {[%emt 0:00:34]} 109. Kb5 {[%emt 0:00:16]} Bg3 {[%emt 0:00:09]} 110. Ka6 {[%emt 0:00:10]} Bf4 {[%emt 0:00:14]} 111. Rf7 {[%emt 0:00:32]} Be5 {[%emt 0:00:17]} 112. Rf1 {[%emt 0:00:22]} Bc7 {[%emt 0:00:32]} 113. Rc1 {[%emt 0:00:26]} Bf4 {[%emt 0:00:11]} 114. Rc5 {[%emt 0:00:09]} Bg3 {[%emt 0:00:17]} 115. Rf5 {[%emt 0:00:09]} Bc7 {[%emt 0:00:19]} 116. Rf7 {[%emt 0:00:21]} Bb8 {[%emt 0:00:29]} 117. Kb6 {[%emt 0:00:16]} Be5 {[%emt 0:00:16]} 118. Re7 {[%emt 0:00:42]} Bg3 {[%emt 0:00:20]} 119. Re2 {[%emt 0:00:30]} Bf4 $11 {[%emt 0:00:27]} 120. Re4 {[%emt 0:00:33]} Bg3 {[%emt 0:00:17]} 121. Ra4+ {[%emt 0:00:27]} Kb8 {[%emt 0:00:17]} 122. Ra2 {[%emt 0:00:07]} Bc7+ {[%emt 0:00:17]} 123. Kc6 {[%emt 0:00:06]} Bf4 {[%emt 0:00:18]} 124. Rf2 {[%emt 0:00:20]} Be5 {[%emt 0:00:44]} 125. Kd7 {[%emt 0:00:18]} Bd4 {[%emt 0:00:15]} 126. Rf4 {[%emt 0:00:09]} Be3 {[%emt 0:00:21]} 127. Rb4+ {[%emt 0:00:10]} 1/2-1/2

[Event "Mitropa Cup Women 2019"]
[Site "Radenci"]
[Date "2019.06.01"]
[Round "6.8"]
[White "Hercog, Nusa"]
[Black "Kovacs, Judit"]
[Result "1-0"]
[ECO "D15"]
[WhiteElo "2062"]
[BlackElo "2025"]
[Annotator "NA"]
[PlyCount "89"]
[EventDate "2019.05.27"]
[EventType "team-tourn"]
[EventCountry "SLO"]
[SourceTitle "playchess.com"]
[Source "ChessBase"]
[SourceQuality "1"]
[WhiteTeam "Slovenia"]
[BlackTeam "Hungary"]
[WhiteTeamCountry "SLO"]
[BlackTeamCountry "HUN"]
[TimeControl "40/5400+30:1800+30"]

1. d4 {[%emt 0:00:00]} d5 {[%emt 0:00:00]} 2. c4 {[%emt 0:00:00]} c6 {[%emt 0:00:00]} 3. Nf3 {[%emt 0:00:00]} Nf6 {[%emt 0:00:00]} 4. Nc3 {[%emt 0:00:00]} a6 {[%emt 0:00:00]} 5. c5 {[%emt 0:00:00]} Bf5 {[%emt 0:00:09]} 6. Qb3 {[%emt 0:00:13]} Qc8 {[%emt 0:00:45]} 7. h3 {[%emt 0:04:23]} e6 {[%emt 0:01:03]} 8. Bf4 {[%emt 0:00:38]} Nbd7 {[%emt 0:00:14]} 9. g4 {[%emt 0:00:52]} Be4 {[%emt 0:05:01]} 10. Nxe4 {[%emt 0:15:01]} Nxe4 {[%emt 0:01:26]} 11. e3 {[%emt 0:09:54]} f6 {[%emt 0:10:04]} 12. Rc1 {[%emt 0:06:39]} e5 {[%emt 0:08:09]} 13. Bh2 {[%emt 0:00:24]} Be7 {[%emt 0:21:20]} 14. Nh4 {[%emt 0:12:53]} g6 {[%emt 0:09:35]} 15. f4 {[%emt 0:05:04]} Qd8 {[%emt 0:09:28]} 16. a3 {[%emt 0:02:41]} f5 {[%emt 0:06:10]} 17. g5 {[%emt 0:02:29]} exd4 {[%emt 0:00:50]} 18. exd4 {[%emt 0:00:08]} Bxg5 {[%emt 0:01:06]} 19. Nf3 {[%emt 0:06:17]} Bh4+ {[%emt 0:00:34]} 20. Ke2 {[%emt 0:00:26]} O-O {[%emt 0:01:50]} 21. Ne5 {[%emt 0:10:25]} Bf6 {[%emt 0:00:30]} 22. Qe3 {[%emt 0:01:30]} Bxe5 {[%emt 0:06:43]} 23. fxe5 {[%emt 0:00:50]} b6 {[%emt 0:07:04]} 24. cxb6 {[%emt 0:09:10]} Qxb6 {[%emt 0:00:19]} 25. Rc2 {[%emt 0:00:20]} f4 {[%emt 0:03:28]} 26. Qd3 {[%emt 0:04:26]} f3+ {[%emt 0:03:03]} 27. Kd1 {[%emt 0:01:13]} Rae8 {[%emt 0:01:11]} 28. Kc1 {[%emt 0:02:34]} Qa5 {[%emt 0:00:58]} 29. b4 {[%emt 0:00:42]} Qb6 {[%emt 0:00:11]} 30. h4 {[%emt 0:00:39]} a5 {[%emt 0:00:08]} 31. Bh3 {[%emt 0:00:23]} Nb8 {[%emt 0:00:36]} 32. bxa5 {[%emt 0:00:26]} Qxa5 {[%emt 0:00:10]} 33. Rf1 {[%emt 0:01:40]} Qa4 {[%emt 0:02:39]} 34. Bg1 {[%emt 0:01:10]} Na6 {[%emt 0:00:36]} 35. Rb2 {[%emt 0:01:27]} Rb8 {[%emt 0:01:07]} 36. Rxf3 {[%emt 0:00:09]} Rxb2 {[%emt 0:00:54]} 37. Be6+ {[%emt 0:01:57]} Kg7 {[%emt 0:00:25]} 38. Rxf8 {[%emt 0:00:05]} Rb3 {[%emt 0:00:40]} 39. Rf7+ {[%emt 0:00:55]} Kh6 {[%emt 0:00:28]} 40. Be3+ {[%emt 0:00:00]} g5 {[%emt 0:00:00]} 41. Bxg5+ {[%emt 0:15:00]} Kh5 {[%emt 0:03:28]} 42. Qe2+ {[%emt 0:00:43]} Kg6 {[%emt 0:00:04]} 43. h5+ {[%emt 0:00:20]} Kxg5 {[%emt 0:00:11]} 44. Qg4+ {[%emt 0:00:05]} Kh6 {[%emt 0:00:06]} 45. Rxh7+ {[%emt 0:00:05]} 1-0

[Event "Mitropa Cup Women 2019"]
[Site "Radenci"]
[Date "2019.06.01"]
[Round "6.9"]
[White "Motycakova, Monika"]
[Black "Navrotescu, Andreea-Cristiana"]
[Result "0-1"]
[ECO "B31"]
[WhiteElo "2150"]
[BlackElo "2233"]
[Annotator "ChessBase"]
[PlyCount "86"]
[EventDate "2019.05.27"]
[EventType "team-tourn"]
[EventCountry "SLO"]
[SourceTitle "playchess.com"]
[Source "ChessBase"]
[SourceQuality "1"]
[WhiteTeam "Slovakia"]
[BlackTeam "France"]
[WhiteTeamCountry "SVK"]
[BlackTeamCountry "FRA"]
[TimeControl "40/5400+30:1800+30"]

1. e4 {[%emt 0:00:00]} c5 {[%emt 0:00:00]} 2. Nf3 {[%emt 0:00:03]} Nc6 {[%emt 0:00:00]} 3. Bb5 {[%emt 0:00:06]} g6 {[%emt 0:00:27]} 4. Bxc6 {[%emt 0:00:18]} bxc6 {[%emt 0:00:21]} 5. O-O {[%emt 0:08:46]} Bg7 {[%emt 0:00:27]} 6. Re1 {[%emt 0:04:28]} Nh6 {[%emt 0:00:30]} 7. d3 {[%emt 0:07:26]} O-O {[%emt 0:01:08]} 8. c3 {[%emt 0:05:37]} f5 {[%emt 0:03:17]} 9. e5 {[%emt 0:02:50]} Rb8 {[%emt 0:03:14]} 10. Qa4 {[%emt 0:04:27]} Nf7 {[%emt 0:06:28]} 11. Qxa7 {[%emt 0:09:23]} Rb5 {[%emt 0:00:17]} 12. Qa4 {[%emt 0:12:33]} e6 {[%emt 0:00:25]} 13. Na3 {[%emt 0:04:33]} Ra5 {[%emt 0:05:39]} 14. Qc2 {[%emt 0:01:38]} g5 {[%emt 0:05:03]} 15. Nc4 {[%emt 0:01:27]} g4 {[%emt 0:06:47]} 16. Nfd2 {[%emt 0:09:12]} Ra8 {[%emt 0:07:50]} 17. f4 {[%emt 0:07:18]} gxf3 {[%emt 0:03:41]} 18. Nxf3 {[%emt 0:00:05]} Ba6 {[%emt 0:01:04]} 19. Qf2 {[%emt 0:09:56]} Nh8 {[%emt 0:08:08]} 20. Qxc5 {[%emt 0:03:21]} f4 {[%emt 0:00:06]} 21. Re4 {[%emt 0:01:54]} Ng6 {[%emt 0:00:28]} 22. Bd2 {[%emt 0:01:23]} Rf5 {[%emt 0:00:10]} 23. Qd4 {[%emt 0:01:38]} d5 {[%emt 0:00:18]} 24. Nb6 {[%emt 0:02:19]} Rb8 {[%emt 0:00:48]} 25. Ree1 {[%emt 0:01:04]} Rxb6 {[%emt 0:01:35]} 26. b4 {[%emt 0:00:07]} Rb7 {[%emt 0:01:59]} 27. a4 {[%emt 0:00:37]} Bf8 {[%emt 0:00:55]} 28. Rab1 {[%emt 0:00:37]} c5 {[%emt 0:01:11]} 29. Qf2 {[%emt 0:00:46]} Bxd3 {[%emt 0:00:23]} 30. Rb2 {[%emt 0:00:13]} Be4 {[%emt 0:01:22]} 31. b5 {[%emt 0:00:30]} Bxf3 {[%emt 0:00:51]} 32. Qxf3 {[%emt 0:00:16]} Nxe5 {[%emt 0:00:18]} 33. Qh3 {[%emt 0:00:56]} Qf6 {[%emt 0:07:29]} 34. Rf1 {[%emt 0:00:24]} f3 {[%emt 0:05:19]} 35. a5 {[%emt 0:00:43]} Rg7 {[%emt 0:00:52]} 36. g3 {[%emt 0:00:34]} Nc4 {[%emt 0:01:32]} 37. Ra2 {[%emt 0:00:23]} Nxd2 {[%emt 0:00:51]} 38. Rxd2 {[%emt 0:00:04]} Qxc3 {[%emt 0:00:30]} 39. Ra2 {[%emt 0:00:39]} Qb3 {[%emt 0:02:44]} 40. Raf2 {[%emt 0:00:00]} c4 {[%emt 0:00:00]} 41. Kh1 {[%emt 0:00:49]} Qxb5 {[%emt 0:07:08]} 42. Rxf3 {[%emt 0:00:29]} Rxf3 {[%emt 0:00:06]} 43. Rxf3 {[%emt 0:00:16]} Qb1+ {[%emt 0:00:33]} 0-1

[Event "Mitropa Cup Women 2019"]
[Site "Radenci"]
[Date "2019.06.01"]
[Round "6.10"]
[White "Afraoui, Anaelle"]
[Black "Ferkova, Dominika"]
[Result "1/2-1/2"]
[ECO "B19"]
[WhiteElo "2068"]
[BlackElo "2037"]
[Annotator "NA"]
[PlyCount "118"]
[EventDate "2019.05.27"]
[EventType "team-tourn"]
[EventCountry "SLO"]
[SourceTitle "playchess.com"]
[Source "ChessBase"]
[SourceQuality "1"]
[WhiteTeam "France"]
[BlackTeam "Slovakia"]
[WhiteTeamCountry "FRA"]
[BlackTeamCountry "SVK"]
[TimeControl "40/5400+30:1800+30"]

1. e4 {[%emt 0:00:00]} c6 {[%emt 0:00:00]} 2. d4 {[%emt 0:00:00]} d5 {[%emt 0:00:07]} 3. Nc3 {[%emt 0:00:00]} dxe4 {[%emt 0:00:08]} 4. Nxe4 {[%emt 0:00:00]} Bf5 {[%emt 0:00:06]} 5. Ng3 {[%emt 0:00:10]} Bg6 {[%emt 0:00:07]} 6. h4 {[%emt 0:00:12]} h6 {[%emt 0:00:05]} 7. Nf3 {[%emt 0:00:19]} Nd7 {[%emt 0:00:07]} 8. Bd3 {[%emt 0:01:14]} Bxd3 {[%emt 0:00:10]} 9. Qxd3 {[%emt 0:00:05]} e6 {[%emt 0:00:07]} 10. Bd2 {[%emt 0:00:17]} Ngf6 {[%emt 0:00:08]} 11. O-O-O {[%emt 0:00:12]} Be7 {[%emt 0:00:14]} 12. Qe2 {[%emt 0:01:07]} O-O {[%emt 0:12:04]} 13. Nf1 {[%emt 0:01:18]} c5 {[%emt 0:14:56]} 14. g4 {[%emt 0:03:05]} Nxg4 {[%emt 0:06:51]} 15. Rg1 {[%emt 0:03:33]} f5 {[%emt 0:14:59]} 16. Qxe6+ {[%emt 0:07:23]} Rf7 {[%emt 0:09:21]} 17. Ng3 {[%emt 0:13:27]} Nf8 {[%emt 0:09:24]} 18. Qc4 {[%emt 0:14:30]} b5 {[%emt 0:04:01]} 19. Qxb5 {[%emt 0:03:11]} Qd5 {[%emt 0:02:39]} 20. Qb3 {[%emt 0:11:08]} c4 {[%emt 0:01:49]} 21. Qc3 {[%emt 0:00:04]} a5 {[%emt 0:01:31]} 22. Ne5 {[%emt 0:04:40]} Nxe5 {[%emt 0:12:06]} 23. dxe5 {[%emt 0:00:09]} Bb4 {[%emt 0:00:42]} 24. Qe3 {[%emt 0:00:40]} c3 {[%emt 0:00:12]} 25. Bxc3 {[%emt 0:03:38]} Qxa2 {[%emt 0:00:10]} 26. Bxb4 {[%emt 0:07:55]} axb4 {[%emt 0:01:26]} 27. Qb3 {[%emt 0:00:20]} Qxb3 {[%emt 0:00:18]} 28. cxb3 {[%emt 0:00:04]} f4 {[%emt 0:00:19]} 29. Ne2 {[%emt 0:10:53]} Ra5 {[%emt 0:04:09]} 30. Rge1 {[%emt 0:04:09]} Rxe5 {[%emt 0:00:39]} 31. Nd4 {[%emt 0:00:30]} Rd5 {[%emt 0:03:02]} 32. Nc2 {[%emt 0:02:09]} Rc5 {[%emt 0:01:33]} 33. Kb1 {[%emt 0:00:22]} Ng6 {[%emt 0:00:17]} 34. Rh1 {[%emt 0:03:03]} Rh5 {[%emt 0:00:46]} 35. Nxb4 {[%emt 0:00:43]} Rxh4 {[%emt 0:00:02]} 36. Rxh4 {[%emt 0:00:11]} Nxh4 {[%emt 0:00:01]} 37. Nd5 {[%emt 0:00:30]} g5 {[%emt 0:01:49]} 38. b4 {[%emt 0:00:38]} Rb7 {[%emt 0:00:35]} 39. Kc2 {[%emt 0:00:14]} Nf5 {[%emt 0:00:19]} 40. Kc3 {[%emt 0:00:00]} Kf7 {[%emt 0:00:00]} 41. Kc4 {[%emt 0:02:41]} Ne7 {[%emt 0:13:30]} 42. b5 {[%emt 0:10:25]} h5 {[%emt 0:05:45]} 43. Kc5 {[%emt 0:04:40]} h4 {[%emt 0:01:15]} 44. f3 {[%emt 0:03:47]} Nxd5 {[%emt 0:05:57]} 45. Rxd5 {[%emt 0:00:09]} Kg6 {[%emt 0:00:09]} 46. Kc6 {[%emt 0:00:44]} Rh7 {[%emt 0:00:08]} 47. b6 {[%emt 0:00:39]} h3 {[%emt 0:00:46]} 48. b7 {[%emt 0:04:06]} Rh8 {[%emt 0:01:00]} 49. Kc7 {[%emt 0:03:09]} h2 {[%emt 0:06:24]} 50. Rd1 {[%emt 0:00:04]} g4 {[%emt 0:00:07]} 51. fxg4 {[%emt 0:00:46]} f3 {[%emt 0:00:23]} 52. b8=Q {[%emt 0:06:06]} Rxb8 {[%emt 0:00:04]} 53. Kxb8 {[%emt 0:00:05]} Kg5 {[%emt 0:00:20]} 54. b4 {[%emt 0:00:14]} Kxg4 {[%emt 0:00:42]} 55. b5 {[%emt 0:00:04]} Kg3 {[%emt 0:00:33]} 56. b6 {[%emt 0:00:06]} Kg2 {[%emt 0:00:17]} 57. b7 {[%emt 0:00:16]} h1=Q {[%emt 0:00:16]} 58. Rxh1 {[%emt 0:00:06]} Kxh1 {[%emt 0:00:07]} 59. Kc8 {[%emt 0:00:30]} f2 {[%emt 0:00:16]} 1/2-1/2